bitfinex/quotes_SOLUSD_20251103
["timestamp","ask_amount","ask_price","bid_price","bid_amount"]
[1762208645706,0.72,166.23,166.18,0.14216157]
[1762208646017,4.76679241,166.22,166.18,0.14216157]
[1762208646208,0.72,166.22,166.18,0.14216157]
[1762208646405,31.6325504,166.26,166.18,0.14216157]
[1762208646610,0.72,166.22,166.18,0.14216157]
[1762208647314,4.98009351,166.27,166.18,0.14216157]
[1762208647511,0.72,166.25,166.18,0.14216157]
[1762208647710,4.04705472,166.24,166.18,0.14216157]
[1762208647909,4.04705472,166.23,166.19,6.01720921]
[1762208648217,10.0515562,166.2,166.02,18.08590806]
[1762208648535,5.0257781,166.06,166.02,18.08590806]
[1762208648703,5.0257781,166.06,165.9,1.99999999]
[1762208648704,0.72,166.05,165.97,15.06296053]
[1762208648899,5.0257781,165.98,165.84,0.22]
[1762208649093,4.05230139,166.04,165.89,0.22]
[1762208649094,4.81793457,166.0,165.89,0.22]
[1762208649298,25.35826438,166.03,165.92,0.22]
[1762208649546,25.35826438,166.03,165.83,18.08590806]
[1762208649547,5.0257781,165.97,165.83,20.08590805]
[1762208649742,5.0257781,165.9,165.85,0.22]
[1762208650041,5.0257781,165.9,165.82,0.42]
[1762208650198,5.0257781,165.9,165.82,6.45032404]
[1762208650511,0.72,165.91,165.82,21.52691311]
[1762208650696,0.72,165.91,165.83,0.42]
[1762208650894,0.72,165.91,165.83,0.56216157]
[1762208651094,25.6177781,165.94,165.83,0.42]
[1762208651289,0.72,165.91,165.83,21.012]
[1762208651491,5.0257781,165.88,165.82,6.03032404]
[1762208652135,5.7457781,165.89,165.82,6.45032404]
[1762208652323,5.7457781,165.89,165.83,0.14216157]
[1762208652520,20.592,165.93,165.83,10.20882769]
[1762208652722,21.312,165.93,165.84,0.14216157]
[1762208652902,21.312,165.93,165.84,0.56216157]
[1762208653105,0.72,165.92,165.84,0.56216157]
[1762208653706,0.72,165.92,165.86,9.93098926]
[1762208653915,0.72,165.92,165.87,21.10086211]
[1762208655225,5.0257781,165.95,165.87,21.52086211]
[1762208655410,0.72,165.94,165.87,21.52086211]
[1762208656008,0.72,165.94,165.88,0.14216157]
[1762208657318,0.72,165.94,165.89,6.0280909]
[1762208658811,0.72,165.96,165.89,21.51831815]
[1762208659019,0.72,165.95,165.89,21.51831815]
[1762208659220,0.72,165.95,165.89,21.09831815]
[1762208659623,0.72,165.95,165.89,15.07022725]
[1762208662313,11.05058057,165.99,165.9,0.56216157]
[1762208662619,0.72,165.97,165.9,0.14216157]
[1762208663209,35.65230789,166.0,165.9,0.14216157]
[1762208663210,20.592,166.0,165.9,10.35098926]
[1762208663417,0.72,165.99,165.93,0.14216157]
[1762208664018,0.72,165.99,165.94,6.02627455]
[1762208664821,0.72,165.99,165.91,21.012]
[1762208664822,0.72,165.99,165.91,0.42]
[1762208665152,0.72,165.99,165.92,6.02700096]
[1762208665350,20.592,166.01,165.93,0.56216157]
[1762208665653,0.72,166.0,165.93,0.14216157]
[1762208665832,0.72,166.0,165.93,0.56216157]
[1762208666229,0.72,166.0,165.94,21.09196094]
[1762208666918,0.72,166.0,165.94,21.51196094]
[1762208667935,0.71,166.01,165.95,0.42]
[1762208668133,0.71,166.01,165.94,21.09196094]
[1762208670647,5.0257781,165.97,165.9,20.592]
[1762208671150,0.71,165.96,165.9,20.592]
[1762208672321,0.71,165.96,165.91,6.02736423]
[1762208674646,0.71,165.96,165.91,21.09577481]
[1762208675730,3.98850775,165.95,165.91,21.09577481]
[1762208675930,5.69009351,165.96,165.91,21.09577481]
[1762208675931,3.98850775,165.94,165.91,21.09577481]
[1762208676128,3.98850775,165.93,165.92,0.42]
[1762208676545,3.98850775,165.93,165.91,21.09577481]
[1762208676825,3.98850775,165.92,165.91,21.65793638]
[1762208680327,4.98009351,166.0,165.95,20.592]
[1762208680552,0.69,166.02,165.96,22.75098926]
[1762208681033,5.67009351,166.04,165.96,22.75098926]
[1762208681234,0.69,166.04,165.96,22.75098926]
[1762208681429,0.69,166.03,165.96,22.75098926]
[1762208681841,0.69,166.03,165.96,9.93098926]
[1762208682242,0.69,166.03,165.98,0.14216157]
[1762208684445,0.69,166.03,165.99,21.08560756]
[1762208684638,24.84077526,166.1,166.0,0.14216157]
[1762208684639,0.69,166.05,166.0,0.14216157]
[1762208684845,20.592,166.07,166.0,0.14216157]
[1762208685240,0.69,166.06,166.0,0.14216157]
[1762208686567,7.77469784,166.05,166.01,6.02373351]
[1762208686734,0.69,166.06,166.01,6.02373351]
[1762208687058,0.69,166.05,166.01,6.02373351]
[1762208688147,0.69,166.05,165.99,15.06114826]
[1762208688544,6.71244073,166.05,165.93,30.13200983]
[1762208688755,7.77469784,166.03,165.94,9.78882769]
[1762208688949,0.69,166.02,165.94,30.38082769]
[1762208689153,0.69,166.02,165.94,20.592]
[1762208690362,0.69,166.02,165.95,21.09068995]
[1762208692145,5.67009351,166.02,165.95,21.09068995]
[1762208692464,4.03520261,166.01,165.95,21.09068995]
[1762208692667,4.03520261,166.0,165.95,21.09068995]
[1762208692847,4.03520261,165.99,165.95,21.09068995]
[1762208693170,4.03520261,165.98,165.95,21.09068995]
[1762208693463,4.03520261,165.97,165.95,21.09068995]
[1762208693646,4.03520261,165.96,165.95,21.09068995]
[1762208694351,0.69,165.99,165.95,21.09068995]
[1762208694557,4.04473614,165.98,165.95,21.09068995]
[1762208694757,4.04473614,165.97,165.95,21.09068995]
[1762208694954,0.69,165.99,165.95,21.09068995]
[1762208694955,0.69,165.99,165.95,6.02591141]
[1762208695159,4.73482716,165.98,165.95,6.02591141]
[1762208695344,4.04482716,165.97,165.95,6.02591141]
[1762208695664,4.04482716,165.96,165.95,6.02591141]
[1762208696059,4.73482716,165.96,165.95,6.02591141]
[1762208696454,4.73482716,165.96,165.94,6.02614903]
[1762208696769,4.04482716,165.95,165.94,6.02614903]
[1762208697064,4.04482716,165.95,165.93,21.09322563]
[1762208697371,4.04482716,165.94,165.93,21.09322563]
[1762208698368,4.04968395,165.94,165.93,21.09322563]
[1762208699049,4.04988469,165.94,165.93,21.09322563]
[1762208699250,4.04988469,165.94,165.93,6.02663773]
[1762208701467,4.73988469,165.94,165.92,6.02700096]
[1762208701652,4.04988469,165.93,165.92,6.02700096]
[1762208702157,4.04988469,165.93,165.9,6.16988911]
[1762208702471,0.69,165.94,165.9,6.16988911]
[1762208702658,4.0515596,165.93,165.9,21.23920797]
[1762208702970,0.69,165.94,165.9,21.23920797]
[1762208703557,0.69,165.94,165.91,20.592]
[1762208703870,7.77469784,165.92,165.85,6.02927655]
[1762208704088,7.77469784,165.92,165.78,21.11231752]
[1762208704089,7.77469784,165.87,165.78,21.11231752]
[1762208704251,7.77469784,165.83,165.78,21.11231752]
[1762208704454,7.77469784,165.83,165.78,6.03209072]
[1762208704655,4.7621527,165.82,165.78,6.03209072]
[1762208704864,4.05240415,165.81,165.78,6.03209072]
[1762208705065,0.71,165.81,165.78,6.03209072]
[1762208705267,0.71,165.8,165.79,20.592]
[1762208705496,0.71,165.81,165.79,20.592]
[1762208705692,0.71,165.81,165.8,6.03136308]
[1762208707207,6.02955714,165.85,165.8,21.1097708]
[1762208707208,0.71,165.85,165.8,21.1097708]
[1762208707496,0.71,165.87,165.81,9.93098926]
[1762208707672,0.71,165.87,165.82,21.10722469]
[1762208708097,4.03912121,165.91,165.82,51.26040283]
[1762208708309,0.71,165.87,165.82,51.26040283]
[1762208708680,0.71,165.87,165.81,6.0309496]
[1762208708987,7.77469784,165.86,165.81,6.0309496]
[1762208709500,0.71,165.85,165.81,6.0309496]
[1762208709802,7.77469784,165.84,165.79,15.07874984]
[1762208710102,0.71,165.85,165.78,6.03209072]
[1762208710602,0.71,165.85,165.78,41.70431752]
[1762208711607,0.71,165.87,165.82,20.73416157]
[1762208711805,8.48469784,165.9,165.83,6.03027196]
[1762208712104,8.48469784,165.9,165.83,21.10595187]
[1762208712276,0.71,165.89,165.83,21.10595187]
[1762208713507,20.592,165.91,165.84,0.14216157]
[1762208713717,0.71,165.92,165.87,0.14216157]
[1762208714005,7.77469784,165.96,165.87,0.14216157]
[1762208714006,13.8003377,165.96,165.87,0.14216157]
[1762208714180,0.71,165.91,165.87,0.14216157]
[1762208714993,0.71,165.91,165.85,21.10340668]
[1762208715194,0.71,165.91,165.86,0.14216157]
[1762208715399,0.71,165.91,165.86,20.73416157]
[1762208715984,0.71,165.91,165.87,21.10086211]
[1762208717106,0.71,165.91,165.87,6.02881774]
[1762208717712,0.71,165.91,165.87,21.10086211]
[1762208717889,0.71,165.91,165.84,20.592]
[1762208718206,0.71,165.91,165.85,21.24556825]
[1762208723419,6.02588619,165.96,165.85,51.39329209]
[1762208723603,0.71,165.93,165.86,9.78882769]
[1762208723927,0.71,165.93,165.88,20.592]
[1762208725418,0.71,165.93,165.88,0.14216157]
[1762208726721,0.71,165.93,165.89,21.09831815]
[1762208727222,8.48469784,165.93,165.89,6.0280909]
[1762208727409,7.77469784,165.91,165.81,30.15338998]
[1762208727812,7.77469784,165.87,165.82,6.03063562]
[1762208728315,0.7,165.86,165.82,6.03063562]
[1762208728931,0.7,165.86,165.8,15.07751573]
[1762208729416,7.77469784,165.85,165.8,15.07751573]
[1762208729618,0.7,165.86,165.8,15.07751573]
[1762208729923,0.7,165.85,165.8,15.07751573]
[1762208730709,0.7,165.91,165.81,0.14216157]
[1762208731020,0.7,165.95,165.88,0.14216157]
[1762208731327,0.7,165.94,165.88,0.14216157]
[1762208732325,0.7,165.94,165.89,21.09831815]
[1762208735032,7.77469784,165.93,165.86,15.07275419]
[1762208735510,0.72,165.92,165.86,15.07275419]
[1762208736308,0.72,165.92,165.86,21.10193542]
[1762208738335,0.72,165.92,165.87,0.14216157]
[1762208738838,0.72,165.92,165.86,21.10193542]
[1762208740712,4.04161004,165.93,165.87,9.93098926]
[1762208740909,0.72,165.94,165.87,9.93098926]
[1762208741250,0.72,165.93,165.87,9.93098926]
[1762208741434,0.72,165.93,165.86,21.10193542]
[1762208741740,4.76161004,165.93,165.86,21.10193542]
[1762208742238,0.72,165.92,165.86,21.10193542]
[1762208743353,0.72,165.92,165.86,15.07275419]
[1762208743515,7.77469784,165.87,165.83,9.78882769]
[1762208743712,7.77469784,165.86,165.81,6.03094582]
[1762208743957,0.72,165.85,165.81,6.03094582]
[1762208744317,0.72,165.85,165.78,20.73416157]
[1762208744540,0.72,165.85,165.8,15.07771278]
[1762208747442,0.72,165.87,165.81,0.14216157]
[1762208747633,0.72,165.87,165.81,9.93098926]
[1762208747937,0.72,165.87,165.82,21.10722469]
[1762208752860,4.77526094,165.87,165.82,21.10722469]
[1762208753152,0.72,165.87,165.82,21.10722469]
[1762208753358,0.72,165.86,165.82,21.10722469]
[1762208754533,0.72,165.86,165.82,6.03063562]
[1762208755851,4.77569153,165.86,165.82,6.03063562]
[1762208756252,0.72,165.85,165.8,21.10962657]
[1762208761168,0.72,165.87,165.81,0.14216157]
[1762208761473,6.02804217,165.9,165.81,0.14216157]
[1762208761474,0.72,165.86,165.81,0.14216157]
[1762208761957,0.72,165.86,165.81,9.93098926]
[1762208762353,0.72,165.86,165.8,21.10962657]
[1762208762673,0.72,165.86,165.78,30.38082769]
[1762208762674,4.05459516,165.85,165.79,6.03161553]
[1762208763048,0.67,165.84,165.79,6.03161553]
[1762208763376,4.05459516,165.86,165.8,9.78882769]
[1762208763549,4.05459516,165.91,165.83,20.592]
[1762208763749,10.05030127,165.99,165.88,9.93098926]
[1762208763750,4.05459516,165.96,165.88,9.93098926]
[1762208763949,0.67,165.92,165.88,20.73416157]
[1762208764158,0.67,165.92,165.88,20.592]
[1762208764958,0.67,165.92,165.89,6.0280909]
[1762208767867,0.67,165.92,165.87,21.10086211]
[1762208768571,4.72202654,165.92,165.87,21.10086211]
[1762208768775,0.67,165.92,165.87,21.10086211]
[1762208768956,0.67,165.91,165.87,21.10086211]
[1762208769279,0.67,165.91,165.87,6.02881774]
[1762208769590,4.72314955,165.91,165.87,6.02881774]
[1762208769872,0.67,165.91,165.87,6.02881774]
[1762208770057,0.67,165.9,165.86,21.10213432]
[1762208773686,5.72137611,165.9,165.84,6.02990834]
[1762208773897,5.72137611,165.9,165.83,6.03025907]
[1762208773898,5.05137611,165.88,165.83,6.03025907]
[1762208774193,0.67,165.87,165.82,21.10699224]
[1762208774695,5.05137611,165.85,165.81,6.03098543]
[1762208775091,0.67,165.84,165.81,6.03098543]
[1762208775866,4.72571421,165.86,165.81,6.03098543]
[1762208776095,0.67,165.85,165.8,15.07764132]
[1762208776304,5.72137611,165.85,165.8,15.07764132]
[1762208776667,0.67,165.84,165.8,15.07764132]
[1762208777078,0.67,165.84,165.79,6.03172688]
[1762208777680,0.67,165.84,165.78,0.14216157]
[1762208777871,0.67,165.84,165.77,0.1]
[1762208777872,5.05137611,165.81,165.77,0.1]
[1762208778081,5.05137611,165.81,165.77,6.13236234]
[1762208778392,5.05137611,165.79,165.77,0.1]
[1762208778765,0.67,165.78,165.77,0.1]
[1762208780187,0.67,165.78,165.77,6.1324546]
[1762208780593,0.67,165.82,165.77,6.1324546]
[1762208780793,4.72253071,165.84,165.77,6.1324546]
[1762208780980,4.72253071,165.85,165.77,21.21359111]
[1762208781374,0.67,165.84,165.77,21.21359111]
[1762208781794,4.72253071,165.84,165.77,21.21359111]
[1762208781980,0.67,165.84,165.77,21.21359111]
[1762208782181,0.67,165.83,165.77,21.21359111]
[1762208783673,0.67,165.83,165.77,6.1324546]
[1762208783873,0.67,165.83,165.77,0.1]
[1762208783874,5.05137611,165.8,165.77,0.1]
[1762208784297,0.67,165.79,165.77,0.1]
[1762208785101,5.05137611,165.78,165.77,0.1]
[1762208785491,0.67,165.78,165.77,0.1]
[1762208785691,5.72137611,165.78,165.77,0.1]
[1762208787786,15.79826184,165.78,165.77,0.1]
[1762208790395,25.58708953,165.78,165.77,0.1]
[1762208790781,25.7292511,165.78,165.77,0.1]
[1762208792504,52.43098926,165.77,165.75,0.1]
[1762208792693,9.23833269,165.76,165.75,0.1]
[1762208793014,9.90833269,165.76,165.75,0.1]
[1762208794298,15.94115122,165.76,165.75,0.1]
[1762208794485,25.72997891,165.76,165.75,0.1]
[1762208796990,0.14216157,165.75,165.74,0.2]
[1762208797294,25.44895658,165.75,165.74,0.2]
[1762208798201,40.28916038,165.75,165.74,0.2]
[1762208798387,46.32234288,165.75,165.74,0.2]
[1762208800497,36.39135362,165.75,165.74,0.2]
[1762208801986,30.35817112,165.75,165.74,0.2]
[1762208802485,26.31337611,165.75,165.74,0.2]
[1762208802690,5.05137611,165.77,165.74,0.2]
[1762208802891,0.67,165.76,165.74,0.2]
[1762208803886,0.67,165.75,165.74,0.2]
[1762208804693,11.08391375,165.77,165.74,0.2]
[1762208804895,0.67,165.76,165.74,0.2]
[1762208805408,5.05137611,165.77,165.74,0.2]
[1762208805709,5.72137611,165.77,165.74,0.2]
[1762208806010,21.262,165.77,165.74,0.2]
[1762208806202,0.67,165.76,165.74,0.2]
[1762208806514,8.47277084,165.76,165.74,0.2]
[1762208806811,7.80277084,165.75,165.74,0.2]
[1762208807226,8.47277084,165.75,165.74,0.2]
[1762208808188,21.262,165.77,165.74,0.2]
[1762208808392,20.592,165.75,165.74,0.2]
[1762208808906,21.262,165.75,165.74,0.2]
[1762208809707,29.06477084,165.75,165.74,0.2]
[1762208809919,14.50595334,165.75,165.74,0.2]
[1762208811111,18.51890044,165.75,165.74,0.2]
[1762208813201,28.30772813,165.75,165.74,0.2]
[1762208814596,33.35624356,165.75,165.74,0.2]
[1762208815225,33.49840513,165.75,165.74,1e-08]
[1762208815420,35.42733602,165.75,165.74,1e-08]
[1762208815600,30.52298926,165.72,165.71,0.1]
[1762208815802,50.81147804,165.72,165.71,0.1]
[1762208816006,50.81147804,165.72,165.68,0.1]
[1762208816308,28.39477084,165.69,165.68,0.1]
[1762208816523,42.3387072,165.69,165.68,0.1]
[1762208816693,30.38082769,165.66,165.65,0.1]
[1762208816894,42.19654563,165.66,165.65,0.1]
[1762208817113,42.86654563,165.66,165.65,0.1]
[1762208818314,43.0087072,165.66,165.65,0.1]
[1762208819130,11.81571794,165.66,165.65,0.1]
[1762208819296,12.48571794,165.66,165.65,0.1]
[1762208819500,18.52217815,165.66,165.65,0.1]
[1762208819812,28.45316741,165.66,165.65,0.1]
[1762208820196,14.47177479,165.66,165.65,0.1]
[1762208820394,28.31100584,165.66,165.65,0.1]
[1762208820825,38.44417815,165.66,165.65,0.1]
[1762208821021,28.31100584,165.66,165.65,0.1]
[1762208821224,33.07771794,165.66,165.65,0.1]
[1762208821423,12.48571794,165.66,165.65,0.1]
[1762208821604,39.11417815,165.66,165.65,0.1]
[1762208821800,32.40771794,165.66,165.65,0.1]
[1762208822305,33.07771794,165.66,165.65,0.1]
[1762208823029,24.6049471,165.66,165.65,0.1]
[1762208823246,4.0129471,165.66,165.65,6.34682463]
[1762208823407,4.0129471,165.69,165.65,6.34682463]
[1762208823738,4.0129471,165.68,165.65,6.34682463]
[1762208823940,4.0129471,165.67,165.65,6.34682463]
[1762208824135,14.55750358,165.71,165.65,6.34682463]
[1762208824323,4.03241274,165.7,165.66,0.21]
[1762208824522,4.03241274,165.69,165.66,0.21]
[1762208824718,4.03241274,165.68,165.65,6.34682463]
[1762208824918,29.11477084,165.72,165.65,6.34682463]
[1762208824919,35.14905571,165.72,165.65,6.34682463]
[1762208825114,7.80277084,165.7,165.65,6.34682463]
[1762208825314,4.03318283,165.69,165.65,6.34682463]
[1762208825520,4.03318283,165.68,165.65,6.34682463]
[1762208825730,8.52277084,165.7,165.65,6.34682463]
[1762208826030,4.03207128,165.69,165.65,6.34682463]
[1762208826205,4.03207128,165.68,165.65,0.1]
[1762208826407,4.03207128,165.67,165.65,0.1]
[1762208826731,4.03421592,165.68,165.65,0.1]
[1762208827034,4.03421592,165.67,165.65,0.1]
[1762208827221,8.52277084,165.69,165.65,0.1]
[1762208827413,4.03623696,165.68,165.65,0.1]
[1762208827726,4.03623696,165.67,165.65,6.13682382]
[1762208827920,4.03623696,165.66,165.65,6.13682382]
[1762208828120,4.03626941,165.68,165.65,0.1]
[1762208828335,4.03626941,165.67,165.65,0.1]
[1762208828634,4.03626941,165.66,165.65,0.1]
[1762208830012,10.79272962,165.66,165.65,0.1]
[1762208830406,4.03626941,165.66,165.65,0.1]
[1762208832138,4.03626941,165.66,165.65,6.13682463]
[1762208832347,4.03626941,165.66,165.65,0.1]
[1762208832512,12.55904025,165.66,165.65,0.1]
[1762208832919,18.59550046,165.66,165.65,0.1]
[1762208834625,12.55904025,165.66,165.65,0.1]
[1762208835220,18.59550046,165.66,165.65,0.1]
[1762208836351,4.03626941,165.66,165.65,6.34682463]
[1762208836528,10.50882769,165.71,165.65,6.34682463]
[1762208836529,5.0249719,165.72,165.65,6.34682463]
[1762208836718,4.0430984,165.71,165.66,0.21]
[1762208836944,4.0430984,165.7,165.66,0.21]
[1762208837137,4.7630984,165.73,165.66,0.21]
[1762208837334,4.0430984,165.72,165.67,6.03609585]
[1762208837652,4.0430984,165.71,165.67,6.03609585]
[1762208837829,4.0430984,165.7,165.65,6.34649274]
[1762208838033,4.0430984,165.69,165.65,6.34649274]
[1762208838357,4.0430984,165.7,165.65,6.34649274]
[1762208838643,4.0430984,165.69,165.65,6.34649274]
[1762208838849,4.0430984,165.71,165.65,6.34649274]
[1762208839146,4.0430984,165.7,165.65,6.34649274]
[1762208839321,4.0430984,165.69,165.65,6.34649274]
[1762208839520,4.0430984,165.7,165.65,6.34649274]
[1762208839747,4.0430984,165.69,165.65,6.34649274]
[1762208839947,4.0430984,165.7,165.65,6.13649274]
[1762208840142,7.80277084,165.68,165.65,0.1]
[1762208840339,4.0430984,165.67,165.65,0.1]
[1762208841258,10.07921913,165.67,165.65,0.1]
[1762208841626,7.80277084,165.66,165.65,0.1]
[1762208841828,12.56586924,165.66,165.65,0.1]
[1762208843253,18.60232945,165.66,165.65,0.1]
[1762208844268,18.74449102,165.66,165.65,0.1]
[1762208844752,23.76946292,165.66,165.65,0.1]
[1762208846449,39.33649102,165.66,165.65,0.1]
[1762208847030,4.0430984,165.66,165.65,0.1]
[1762208847236,6.03618245,165.67,165.65,0.1]
[1762208847460,10.07928085,165.67,165.65,0.1]
[1762208847672,10.79928085,165.67,165.65,0.1]
[1762208847966,0.72,165.66,165.65,0.1]
[1762208848733,10.07928085,165.67,165.65,0.1]
[1762208848937,0.72,165.66,165.65,0.1]
[1762208849363,6.75646021,165.66,165.65,0.1]
[1762208849965,6.03646021,165.66,165.65,0.1]
[1762208850468,4.0430984,165.67,165.65,0.1]
[1762208850655,20.592,165.66,165.65,0.1]
[1762208850964,24.6350984,165.66,165.65,0.1]
[1762208851466,30.67155861,165.66,165.65,0.1]
[1762208851856,31.39155861,165.66,165.65,0.1]
[1762208852360,30.67155861,165.66,165.65,0.1]
[1762208852752,38.47432945,165.66,165.65,0.1]
[1762208853262,39.13432945,165.66,165.65,0.1]
[1762208853772,42.82583589,165.66,165.65,0.1]
[1762208854376,47.85080779,165.66,165.6,0.1]
[1762208854550,7.80277084,165.61,165.6,0.1]
[1762208854749,11.84586924,165.61,165.6,0.1]
[1762208855058,12.50586924,165.61,165.6,0.1]
[1762208855266,18.54415195,165.61,165.6,0.1]
[1762208855942,18.68631352,165.61,165.6,0.1]
[1762208856256,26.48908436,165.61,165.6,1e-08]
[1762208856455,31.51405626,165.61,165.6,1e-08]
[1762208856981,20.73416157,165.59,165.57,0.1]
[1762208857281,39.27904282,165.59,165.57,0.1]
[1762208857651,0.14216157,165.58,165.57,0.1]
[1762208857952,4.84525997,165.58,165.57,0.1]
[1762208858170,14.63408766,165.58,165.57,1e-08]
[1762208858378,30.52298926,165.54,165.52,0.1]
[1762208858673,21.7768585,165.53,165.52,0.1]
[1762208858885,22.4368585,165.53,165.52,0.1]
[1762208859472,28.47805949,165.53,165.52,0.1]
[1762208859966,28.33589792,165.53,165.52,0.1]
[1762208862853,28.47805949,165.53,165.52,0.1]
[1762208863253,28.33589792,165.53,165.52,0.1]
[1762208863452,24.29279952,165.53,165.52,0.1]
[1762208866360,21.56446927,165.53,165.52,0.1]
[1762208867158,24.72467045,165.53,165.52,0.1]
[1762208869279,24.86683202,165.53,165.52,0.1]
[1762208874307,20.592,165.5,165.48,0.1]
[1762208874486,25.66644059,165.49,165.48,0.1]
[1762208876076,31.70910177,165.49,165.48,0.1]
[1762208877173,32.36910177,165.49,165.48,0.1]
[1762208878388,29.24390565,165.49,165.48,0.1]
[1762208879374,22.54124447,165.49,165.48,0.1]
[1762208879597,7.99129744,165.51,165.48,0.31]
[1762208879896,8.65129744,165.51,165.48,0.1]
[1762208880202,1.94924447,165.5,165.48,0.1]
[1762208880394,28.5837337,165.5,165.48,0.1]
[1762208881905,3.16020118,165.53,165.49,0.21]
[1762208882199,22.54124447,165.51,165.49,0.21]
[1762208882402,28.58327016,165.51,165.49,0.21]
[1762208882697,28.58327016,165.51,165.48,0.1]
[1762208882905,28.58327016,165.51,165.48,0.31]
[1762208883086,22.54124447,165.51,165.48,0.31]
[1762208883289,22.54124447,165.51,165.48,0.1]
[1762208883505,20.592,165.51,165.49,0.21]
[1762208883901,26.6340025,165.51,165.48,0.1]
[1762208884201,7.99093764,165.52,165.48,6.35299925]
[1762208884882,1.94924447,165.54,165.49,0.21]
[1762208885196,7.98880139,165.58,165.49,9.99882769]
[1762208885707,7.98880139,165.58,165.5,0.21]
[1762208885881,8.68880139,165.58,165.5,0.21]
[1762208886091,20.592,165.57,165.5,0.21]
[1762208886386,25.66146395,165.57,165.5,0.21]
[1762208886601,31.70152728,165.57,165.51,6.041931]
[1762208887102,5.06946395,165.55,165.51,6.041931]
[1762208887302,5.06946395,165.52,165.48,0.1]
[1762208887802,5.06946395,165.5,165.48,0.1]
[1762208888203,5.06946395,165.5,165.48,0.31]
[1762208888405,4.71908996,165.53,165.48,0.1]
[1762208888588,5.06946395,165.5,165.48,0.1]
[1762208889501,5.06946395,165.5,165.48,0.31]
[1762208890212,11.11177517,165.5,165.48,0.1]
[1762208891004,5.06946395,165.51,165.48,0.1]
[1762208891205,5.06946395,165.5,165.48,0.1]
[1762208891718,5.76946395,165.5,165.48,0.1]
[1762208892415,5.06946395,165.49,165.48,0.1]
[1762208893288,11.11212513,165.49,165.48,0.1]
[1762208893489,11.81212513,165.49,165.48,0.1]
[1762208893719,32.40412513,165.49,165.48,0.1]
[1762208893889,4.02062412,165.49,165.48,0.1]
[1762208894089,5.06946395,165.49,165.48,0.1]
[1762208894699,9.79246345,165.49,165.48,0.1]
[1762208895025,15.83512463,165.49,165.48,0.1]
[1762208896413,9.79246345,165.49,165.48,0.1]
[1762208896722,15.83512463,165.49,165.48,0.1]
[1762208906003,36.42712463,165.49,165.48,0.1]
[1762208906418,33.30687352,165.49,165.48,0.1]
[1762208907525,12.71487352,165.49,165.48,0.1]
[1762208908727,4.0229995,165.49,165.48,0.1]
[1762208908904,4.0229995,165.5,165.48,0.31]
[1762208909106,10.06533456,165.5,165.48,0.31]
[1762208909313,2.66921284,165.49,165.48,0.1]
[1762208909512,6.69221234,165.49,165.48,0.1]
[1762208909915,5.97221234,165.49,165.48,0.1]
[1762208910733,12.01487352,165.49,165.48,0.1]
[1762208911234,12.73487352,165.49,165.48,0.1]
[1762208911526,8.71187402,165.49,165.48,0.1]
[1762208911733,12.73487352,165.49,165.48,0.1]
[1762208912031,8.71187402,165.49,165.48,0.1]
[1762208912233,12.73487352,165.49,165.48,0.1]
[1762208912735,8.71187402,165.49,165.48,0.1]
[1762208912913,12.73487352,165.49,165.48,0.1]
[1762208914110,12.66487352,165.49,165.48,0.1]
[1762208914928,12.01487352,165.49,165.48,0.1]
[1762208918539,12.66487352,165.49,165.48,0.1]
[1762208919038,12.01487352,165.49,165.48,0.1]
[1762208920011,33.25687352,165.49,165.48,0.1]
[1762208920234,41.33851559,165.49,165.48,0.1]
[1762208920534,25.89429573,165.49,165.48,0.1]
[1762208920739,20.592,165.46,165.4,6.25573018]
[1762208921041,1.94921284,165.42,165.36,15.1183761]
[1762208921217,1.94921284,165.41,165.37,0.21]
[1762208921742,1.94921284,165.41,165.37,6.25704601]
[1762208922234,1.94921284,165.41,165.38,0.21]
[1762208922444,22.54121284,165.41,165.38,0.21]